Cogmind - Beta 13 @@@ ROGUE MODE // 2024.04.08 @ 18:36:56 Player: zoefiri Result: Destroyed by G-47 Trooper with Particle Gun Performance ------------- Evolutions (2) 1000 Regions Visited (4) 800 Robots Destroyed (29) 145 Value Destroyed (583) 583 Prototype IDs (1) 20 Alien Tech Used (0) 0 Bonus (-20) -20 TOTAL SCORE: 2528 Bonus ------- Friendly Fire -20 Cogmind --------- Core Integrity 0/550 Matter 300/300 Energy 100/100 System Corruption 0% Temperature Cool (9) Movement Core (200) Ox3 Location -8/Materials Parts ------- > --- POWER (1) -------- (None) > --- PROPULSION (4) --- (None) > --- UTILITY (3) ------ Medium Storage Unit > --- WEAPON (3) ------- (None) > --- INVENTORY (10) --- Hover Unit Hover Unit Heat Sink Advanced Weight Redist. System Advanced Targeting Computer Improved Light Armor Plating Hacking Suite Heavy EM Shotgun Advanced Beam Cannon Rocket Launcher Peak State ------------ > --- POWER ------------ Light Nuclear Core > --- PROPULSION ------- Aluminum Leg Aluminum Leg Aluminum Leg Aluminum Leg > --- UTILITY ---------- Medium Storage Unit Medium Armor Plating Hardlight Generator > --- WEAPON ----------- Advanced Beam Cannon High-powered Shotgun High-powered Shotgun > --- INVENTORY -------- Hover Unit Hover Unit Heat Sink Advanced Weight Redist. System Advanced Targeting Computer Improved Light Armor Plating Hacking Suite Advanced Beam Cannon Rocket Launcher [Rating: 24] Favorites ----------- Power Light Nuclear Core Engine Improved Ion Engine Power Core Light Nuclear Core Propulsion Aluminum Leg Leg Aluminum Leg Utility Medium Armor Plating Device Hardlight Generator Storage Medium Storage Unit Protection Medium Armor Plating Weapon Advanced Beam Cannon Energy Gun Medium Laser Energy Cannon Advanced Beam Cannon Ballistic Gun Minigun Build | -11 -10 -10 -9 -8 ------- Run | Yrd Mat Min Mat Mat Slots Evolved 4 | . . . 2 2 Power . | . . . . . Propulsion 2 | . . . 2 . Utility 1 | . . . . 1 Weapon 1 | . . . . 1 Parts Attached 28 | 6 7 3 10 2 Power 3 | 1 1 1 . . Engine 2 | 1 1 . . . Core 1 | . . 1 . . Reactor . | . . . . . Propulsion 9 | 2 . 1 6 . Treads . | . . . . . Leg 9 | 2 . 1 6 . Wheel . | . . . . . Hover . | . . . . . Flight . | . . . . . Utility 5 | 1 3 . . 1 Device 1 | . . . . 1 Storage 2 | 1 1 . . . Processor . | . . . . . Hackware . | . . . . . Protection 2 | . 2 . . . Artifact . | . . . . . Weapon 11 | 2 3 1 4 1 Energy Gun 1 | 1 . . . . Energy Cannon 5 | . 3 . 1 1 Ballistic Gun 5 | 1 . 1 3 . Ballistic Cannon . | . . . . . Launcher . | . . . . . Special Weapon . | . . . . . Impact Weapon . | . . . . . Slashing Weapon . | . . . . . Piercing Weapon . | . . . . . Special Melee Weapon . | . . . . . Unidentified Prototypes 1 | . 1 . . . Parts Lost 10 | . . . . 10 Power 1 | . . . . 1 Propulsion 4 | . . . . 4 Utility 2 | . . . . 2 Weapon 3 | . . . . 3 Highest Loss Streak 5 | . . . . 5 To Critical Strikes . | . . . . . Average Slot Usage (%) 90 | . 88 97 92 68 Engine 4 | . 14 2 . . Core 7 | . . 11 11 5 Leg 29 | . 28 28 38 21 Storage 12 | . 13 14 11 9 Protection 11 | . 13 14 11 3 Energy Cannon 14 | . 17 14 14 7 Ballistic Gun 7 | . . 11 7 15 Naked Turns . | . . . . . Heaviest Build 37 | 13 32 31 30 37 Greatest Support 40 | 20 20 20 40 40 Greatest Overweight (x) 4 | 4 1 1 . 3 Average Overweight (x) . | . . 1 . . Largest Inventory Capacity 10 | 8 10 10 10 10 Average Capacity 9 | 7 9 10 10 10 Most Carried 10 | 1 4 10 10 10 Average Carried 7 | . . 9 9 9 Final Capacity 10 | 8 10 10 10 10 Final Carried 10 | . 4 10 10 10 Class Distribution -------------------- 79% | Mutant 11% | Scavenger-Mutant 6% | Scavenger-Tank Dominant Class ---------------- Mutant | -10/Materials Mutant | -10/Mines Mutant | -9/Materials Scavenger-Tank | -8/Materials Resources | -11 -10 -10 -9 -8 ----------- Run | Yrd Mat Min Mat Mat Matter Collected 666 | 152 43 171 171 129 Remotely . | . . . . . Salvage Created 919 | . 289 117 376 137 Parts 71 | . 20 8 30 13 Haulers Intercepted 5 | . 2 . 3 . Recyclers Shooed . | . . . . . Parts Field Recycled . | . . . . . Retrieved Matter . | . . . . . Parts Self-Destructed . | . . . . . Prevented . | . . . . . Kills | -11 -10 -10 -9 -8 ------- Run | Yrd Mat Min Mat Mat Combat Hostiles Destroyed 15 | . 3 2 3 7 Guns 7 | . . . 1 6 Cannons 7 | . 2 2 2 1 Classes Destroyed 8 | . 3 1 2 2 Builder 1 | . . . 1 . Tunneler 1 | . . 1 . . Hauler 5 | . 2 . 3 . Recycler 1 | . . . . 1 Watcher 6 | . 2 . 3 1 Swarmer 6 | . . . . 6 Grunt 7 | . 3 2 1 1 Sentry 2 | . . . 2 . Best Kill Streak 6 | . 3 1 2 6 Combat Bots Only 4 | . 2 1 1 4 Max Kills in Single Turn 2 | . 1 1 1 2 Gunslinging . | . . . . . Exploded . | . . . . . Melee . | . . . . . Uniques/NPCs Destroyed . | . . . . . Combat | -11 -10 -10 -9 -8 -------- Run | Yrd Mat Min Mat Mat Hostile Shots Fired 238 | . 9 11 9 209 Missed 55 | . 1 3 3 48 Damage Taken 1661 | . 114 97 99 1351 Core 578 | . . 28 . 550 Absorbed by Shields 404 | . . . . 404 Core Remaining (%) 96 | 100 . 88 100 . Volleys Fired 79 | . 23 8 27 21 Largest 3 | . 2 2 2 3 Hottest 136 | . 136 93 136 118 Shots Fired 152 | . 30 16 54 52 Gun 58 | . . 8 13 37 Cannon 94 | . 30 8 41 15 Launcher . | . . . . . Special . | . . . . . Kinetic 58 | . . 8 13 37 Thermal 94 | . 30 8 41 15 Explosive . | . . . . . Electromagnetic . | . . . . . Robot Hit Streak 8 | . 3 3 6 8 Robot Miss Streak 8 | . 3 2 3 8 Penetration Max . | . . . . . Secondary Targets . | . . . . . Shots Hit Robots 87 | . 16 8 31 32 Core Hits 46 | . 7 4 11 24 Critical Kills 1 | . 1 . . . Critical Parts Destroyed . | . . . . . Critical Strikes 2 | . 1 . 1 . Meltdown 1 | . 1 . . . Destroy 1 | . . . 1 . Melee Attacks . | . . . . . Impact . | . . . . . Slashing . | . . . . . Piercing . | . . . . . Sneak Attacks . | . . . . . Combat Hostiles . | . . . . . Follow-up Attacks . | . . . . . Damage Inflicted 1830 | . 327 176 643 684 Guns 708 | . . 75 170 463 Cannons 1067 | . 327 81 473 186 Explosions . | . . . . . Melee . | . . . . . Ramming 55 | . . 20 . 35 Kinetic 708 | . . 75 170 463 Thermal 1067 | . 327 81 473 186 Explosive . | . . . . . Electromagnetic . | . . . . . Impact . | . . . . . Slashing . | . . . . . Piercing . | . . . . . Highest Corruption . | . . . . . Average Corruption . | . . . . . Corruption Purged . | . . . . . Corruption Blocked . | . . . . . Overload Shots . | . . . . . Overflow Damage 5 | . 3 . 1 1 Projectiles 5 | . 3 . 1 1 Explosions . | . . . . . Melee . | . . . . . Knockbacks . | . . . . . Impact . | . . . . . Kinetic . | . . . . . Secondary . | . . . . . Self-Inflicted Damage 3 | . . . . 3 Shots . | . . . . . Rammed 19 | . . . . 19 Targets Rammed 30 | . . 3 . 27 Kicked 11 | . . 3 . 8 Crushed . | . . . . . Highest Temperature 423 | . 279 270 423 265 Average Temperature 104 | . 104 111 100 107 Received Heat Transfer 519 | . 48 54 54 363 Effects 7 | . 5 . 2 . Energy Bleed 2 | . 2 . . . Interference 3 | . 3 . . . Short Circuit 1 | . . . 1 . Damage (minor) 1 | . . . 1 . Siege Activations . | . . . . . Robots Corrupted . | . . . . . Combat Hostiles . | . . . . . Parts Fried . | . . . . . Impact Corruptions . | . . . . . Robots Melted 1 | . 1 . . . Combat Hostiles 1 | . 1 . . . Parts Melted 4 | . 4 . . . Heat Transferred 1924 | . 592 148 851 333 Parts Sabotaged . | . . . . . Parts Stolen . | . . . . . Parts Stripped . | . . . . . Power Chain Reactions . | . . . . . Alert | -11 -10 -10 -9 -8 ------- Run | Yrd Mat Min Mat Mat Peak Influence 280 | . 77 57 135 280 Initial 28 | . . 7 . 28 Average 43 | . 35 13 55 141 Maximum Alert Level 1 | . . . . 1 Low Security (%) 97 | 100 100 100 100 74 Level 1 2 | . . . . 25 Level 2 . | . . . . . Level 3 . | . . . . . Level 4 . | . . . . . Level 5 . | . . . . . High Security . | . . . . . Max Security . | . . . . . Squads Dispatched 1 | . . 1 . . Investigation 1 | . . 1 . . Extermination . | . . . . . Reinforcement . | . . . . . Assault . | . . . . . Garrison . | . . . . . Intercept . | . . . . . Searches Triggered . | . . . . . Construction Impeded . | . . . . . Haulers Reinforced . | . . . . . Active Scanning Responses . | . . . . . Cargo Convoy Interrupts . | . . . . . Stealth | -11 -10 -10 -9 -8 --------- Run | Yrd Mat Min Mat Mat Distress Signals 2 | . . . 1 1 Communications Jammed . | . . . . . Distress Signals . | . . . . . Times Spotted 42 | . 6 2 14 20 Peak Tracking Total 9 | . 1 2 3 9 Tactical Retreats 4 | . . . . 4 Traps | -11 -10 -10 -9 -8 ------- Run | Yrd Mat Min Mat Mat Traps Triggered 2 | . 2 . . . Indirectly . | . . . . . Trap Hack Attempts . | . . . . . Triggered . | . . . . . Disarmed . | . . . . . Reprogrammed . | . . . . . Reused . | . . . . . Traps Extracted . | . . . . . Installed . | . . . . . Triggered . | . . . . . Machines | -11 -10 -10 -9 -8 ---------- Run | Yrd Mat Min Mat Mat Machines Disabled 2 | . . . 1 1 Max in Single Turn 1 | . . . 1 1 Machines Repaired . | . . . . . Machines Dismantled . | . . . . . Machines Sabotaged . | . . . . . Overloaded Fab Kills . | . . . . . Hacking | -11 -10 -10 -9 -8 --------- Run | Yrd Mat Min Mat Mat Machines Accessed 3 | . 1 1 1 . Terminals 2 | . 1 . 1 . Fabricators . | . . . . . Repair Stations . | . . . . . Recycling Units . | . . . . . Scanalyzers . | . . . . . Garrison Access . | . . . . . Total Hacks 6 | . 2 1 3 . Successful 3 | . 1 1 1 . Failed 3 | . 1 . 2 . Catastrophic . | . . . . . Database Lockouts . | . . . . . Manual . | . . . . . Terminals 5 | . 2 . 3 . Fabricators . | . . . . . Repair Stations . | . . . . . Recycling Units . | . . . . . Scanalyzers . | . . . . . Garrison Access . | . . . . . Terminal Hacks 3 | . 1 1 1 . Record 2 | . 1 . 1 . Open Door 1 | . . 1 . . Fabricator Hacks . | . . . . . Repair Station Hacks . | . . . . . Recycling Unit Hacks . | . . . . . Scanalyzer . | . . . . . Garrison Access Hacks . | . . . . . Unauthorized Hacks . | . . . . . Terminals . | . . . . . Fabricators . | . . . . . Repair Stations . | . . . . . Recycling Units . | . . . . . Scanalyzers . | . . . . . Garrison Access . | . . . . . Data Cores Recovered 1 | . . . 1 . Used . | . . . . . Hacking Detections 2 | . 1 . 1 . Full Trace Events . | . . . . . Feedback Events . | . . . . . Feedback Blocked . | . . . . . Robot Schematics Acquired . | . . . . . Robots Built . | . . . . . Authchips . | . . . . . Time . | . . . . . Total Robot Build Rating . | . . . . . Part Schematics Acquired . | . . . . . Parts Built . | . . . . . Authchips . | . . . . . Time . | . . . . . Total Part Build Rating . | . . . . . Parts Repaired . | . . . . . Time . | . . . . . Parts Recycled . | . . . . . Recycled Matter . | . . . . . Retrieved Matter . | . . . . . Retrieved Components . | . . . . . Parts Scanalyzed . | . . . . . Part Schematics Acquired . | . . . . . Parts Damaged . | . . . . . Bothacking | -11 -10 -10 -9 -8 ------------ Run | Yrd Mat Min Mat Mat Used RIF Installer . | . . . . . Robots Hacked . | . . . . . Non-combat . | . . . . . Combat . | . . . . . Robot Hacks Applied . | . . . . . Relay Couplers Released . | . . . . . Fabnet Peak Effective % . | . . . . . Robots Rewired . | . . . . . Allies Hacked . | . . . . . Hacks Repelled . | . . . . . Allies | -11 -10 -10 -9 -8 -------- Run | Yrd Mat Min Mat Mat Total Allies . | . . . . . Largest Group . | . . . . . Highest-Rated Group . | . . . . . Highest-Rated Ally . | . . . . . Total Orders . | . . . . . Ally Attacks . | . . . . . Total Damage . | . . . . . Kills . | . . . . . Allies Corrupted . | . . . . . Allies Melted . | . . . . . Intel | -11 -10 -10 -9 -8 ------- Run | Yrd Mat Min Mat Mat Robot Analysis Total . | . . . . . Derelict Logs Recovered 2 | . . 2 . . Drone Launches . | . . . . . Drone Recoveries . | . . . . . Exploration | -11 -10 -10 -9 -8 ------------- Run | Yrd Mat Min Mat Mat Turns Passed 2741 | 76 701 992 664 308 Spaces Moved 1490 | 61 340 501 455 133 Core 28 | 26 . . . 2 Treads . | . . . . . Legs 1462 | 35 340 501 455 131 Wheels . | . . . . . Hover . | . . . . . Flight . | . . . . . Fastest Speed 50 | 50 120 190 120 120 Average Speed 159 | 110 185 190 120 136 Slowest Speed 260 | 250 190 190 120 260 Overloaded Moves . | . . . . . Propulsion Burnouts . | . . . . . Robots Hopped . | . . . . . Cave-ins Triggered . | . . . . . Exploration Rate (%) 37 | 5 56 80 32 13 Regions Visited 4 Branch Regions 1 Pre-discovered Areas 1 | . . 1 . . Known Exits Taken . | . . . . . Unknown Exits Taken 4 | 1 1 1 1 . Scrap Searched 1 | . . 1 . . Spaces Dug . | . . . . . Terrain Destroyed . | . . . . . Melee . | . . . . . Projectile . | . . . . . AOE . | . . . . . Terrain Rammed . | . . . . . Walls Destroyed . | . . . . . Machines Disabled . | . . . . . Actions | -11 -10 -10 -9 -8 --------- Run | Yrd Mat Min Mat Mat Total 1682 | 67 379 525 523 188 Wait 24 | . 1 . 19 4 Move 1486 | 60 339 500 454 133 Hop . | . . . . . Pick Up 17 | 1 4 8 3 1 Fast Attach 20 | 5 7 1 6 1 Attach 4 | 1 . 1 1 1 Detach . | . . . . . Swap 4 | . . 1 3 . Drop 18 | . 5 3 10 . Fire 79 | . 23 8 27 21 Melee . | . . . . . Ram 19 | . . . . 19 Kick 11 | . . 3 . 8 Crush . | . . . . . Escape Stasis . | . . . . . Rewire . | . . . . . Trap . | . . . . . Miscellaneous . | . . . . . Route ------- -11/Scrapyard -10/Materials (discovered 2 exits: *Mat / *Min) -10/Mines (discovered 2 exits: *Mat x2) -9/Materials -8/Materials History --------- Turn | Location | Event 12 | -11/Scrapyard | Discovered new exit (range 16) 77 | -11/Scrapyard | Entered Materials 319 | -10/Materials | Build established: Mutant 547 | -10/Materials | Discovered new exit (range 10) 648 | -10/Materials | Discovered new exit (range 9) 778 | -10/Materials | Entered Mines 814 | -10/Mines | Met a Derelict shopkeep closing up shop 1055 | -10/Mines | Received a Rocket Launcher from a helpful Derelict 1267 | -10/Mines | Learned location of Zion (-7) 1620 | -10/Mines | Learned Materials garrison access intel 1685 | -10/Mines | Discovered new exit (range 15) 1747 | -10/Mines | Discovered new exit (range 9) 1770 | -10/Mines | Entered Materials 1770 | -9/Materials | Evolved 2 slots: Propulsion x2 2312 | -9/Materials | Discovered new exit (range 16) 2415 | -9/Materials | Build established: Scavenger-Mutant 2434 | -9/Materials | Entered another Materials area 2434 | -8/Materials | Evolved 2 slots: Utility x1, Weapon x1 2435 | -8/Materials | Loaded intel: 1 garrison access location 2670 | -8/Materials | Lost 3 parts (1p2n) 2718 | -8/Materials | Core integrity fell below 50% 2731 | -8/Materials | Core integrity fell below 20% 2734 | -8/Materials | Lost 5 parts (1n1u3w) 2742 | -8/Materials | Destroyed by G-47 Trooper with Particle Gun Last Messages --------------- Acquired 8 matter. S-10 Pest destroyed. Electrolysis Chamber disabled. Critical hit (Burn: +37). Aluminum Leg destroyed. Adv. Beam Cannon destroyed. Hpw. Shotgun destroyed. G-50 Soldier destroyed. Slammed into S-10 Pest. Acquired 21 matter. Hardlight Generator destroyed. Hpw. Shotgun destroyed. Slammed into S-10 Pest. Destabilizing: Core damaged (-27). Slammed into S-10 Pest. Slammed into G-47 Trooper. Y-45 Defender suffers critical hit (Burn). Y-45 Defender destroyed. Slammed into S-10 Pest. Slammed into G-47 Trooper. Map ----- +----------------------------------------------------+ | ???????????????????????????????????? | | ???????????????????????????????????? | | ???????????????????????????????????? | | ???????????????????????????????????? | | ???????????????????????????????????? | | ???????????????????????????????????? | | ???????????????????????????????????? | | ??????????????? ?????????????????? | | ??????????????# #????????????????? | | ??????????????# #????????????????? | | ??????????????# #????????????????? | | ??????????????# #????????????????? | | ??????????????# #????????????????? | | ??????????????# #????????????????" | | ??????????????# #????????????????? | | ??????????????# #????????????????? | | ?????########## #???###??????????? | | ?????#! # ##### #####??????? | | ?????# """ # # #??????? | | ?????# """ !# # """ #??????? | | ?????# """ # # """ [[ #??????? | | ?????# ! + # "" ][ #??????? | | ?????# """ # # """ ] #??????? | | ?????# """ # /%""" #??????? | | ?????# %" Y # # ######## | | ?????# *%s%@g ### # + | | ?????###+######?# ################## | | ???????#=#??????# #????????????????# | | ???????#[#??????# #????????????????# | | ???????#%######## #????????????????# | | ???????#%%%=* +????????????????# | | ???????######## #????????????????# | | ???????????????? ?????????????????# | | ???????????????? ?????????????????# | | ???????????????? ?????????????????# | | ???????????????? ?????????????????# | | ???????????????? ?????????????????# | | ????????????????##?????????????????? | | ???????????????????????????????????? | | ???????????????????????????????????? | | ???????????????????????????????????? | | ???????????????????????????????????? | | ???????????????????????????????????? | | ???????????????????????????????????? | | ???????????????????????????????????? | | ???????????????????????????????????? | | ???????????????????????????????????? | | ???????????????????????????????????? | | | | | +----------------------------------------------------+ Best States ------------- Heat Dissipation 31 Energy Generation 14 Energy Capacity 265 Matter Stores 300 Matter Capacity 300 Sight Range 16 Terrain Scan Density 10 Armor Coverage 225 Evasion (%) 55 Item Schematics ----------------- None Robot Schematics ------------------ None Fabricated ------------ Nothing Alien Tech Used ----------------- None Achievements -------------- None Challenges ------------ None Game ------ Seed HardlightImpulseNanosword Manual? 0 Play Time 00:20:23 Cumulative 3.1 hours Start 2024.04.08 @ 18:18:48 End 2024.04.08 @ 18:36:56 Sessions 1 Manual Loads 0 Difficulty Rogue Special Mode None Game No. 6 Rogue 3 Adventurer 0 Explorer 3 Win Type - Total 0 Types 0/0/0/0/0/0/0/0/0 Lore% 8 Gallery% 13 Achievement% 12 Wizard Run 0 Options --------- Layout 1 ASCII 0 Keyboard 0 Movement Arrows Keybinds 0 Fullscreen 0 Font 28/SmallcapsGlow Map View 50x43 Zoom Use 0% Tactical HUD 0 Map Filters NONE Filters NONE Steam 1 RUN: 681c88b2-ff9a-43c2-ad7a-7501d281aec7